Cogmind - Beta 16 @@@ ROGUE MODE // 2026.02.07 @ 15:51:45 Player: Krysmphoenix Result: Destroyed by G-47 Trooper with Particle Gun Performance ------------- Evolutions (0) 0 Regions Visited (2) 400 Robots Destroyed (25) 125 Value Destroyed (475) 475 Prototype IDs (0) 0 Alien Tech Used (0) 0 Bonus (0) 0 TOTAL SCORE: 1000 Bonus ------- None Cogmind --------- Core Integrity 0/250 Matter 294/300 Energy 125/125 System Corruption 0% Temperature Cool (11) Movement Flying (37) Location -10/Mines Parts ------- > --- POWER (1) -------- Light Ion Engine > --- PROPULSION (2) --- Flight Unit Flight Unit > --- UTILITY (2) ------ (None) > --- WEAPON (2) ------- Light Assault Rifle Datajack > --- INVENTORY (5) ---- Wheel Sensor Array Seismic Detector Mining Laser Peak State ------------ > --- POWER ------------ Ion Engine > --- PROPULSION ------- Wheel Wheel > --- UTILITY ---------- Improved Terrain Scanner Seismic Detector > --- WEAPON ----------- Medium Laser Medium Laser > --- INVENTORY -------- Light Assault Rifle [Rating: 9] Favorites ----------- Power Ion Engine Engine Ion Engine Propulsion Wheel Wheel Wheel Hover Unit Hover Unit Flight Unit Flight Unit Utility Structural Scanner Device Structural Scanner Processor Visual Processing Unit Hackware Hacking Suite Weapon Medium Laser Energy Gun Medium Laser Ballistic Gun Light Assault Rifle Special Weapon Mining Laser Special Melee Weapon Datajack Build | -11 -10 -10 ------- Run | Yrd Mat Min Slots Evolved . | . . . Power . | . . . Propulsion . | . . . Utility . | . . . Weapon . | . . . Parts Attached 24 | 8 13 3 Power 4 | 1 2 1 Engine 4 | 1 2 1 Core . | . . . Reactor . | . . . Propulsion 9 | 2 5 2 Treads . | . . . Leg . | . . . Wheel 5 | 2 3 . Hover 2 | . 2 . Flight 2 | . . 2 Utility 5 | 2 3 . Device 3 | 2 1 . Storage . | . . . Processor 1 | . 1 . Hackware 1 | . 1 . Protection . | . . . Artifact . | . . . Weapon 6 | 3 3 . Energy Gun 2 | 2 . . Energy Cannon . | . . . Ballistic Gun 1 | 1 . . Ballistic Cannon . | . . . Launcher . | . . . Special Weapon 2 | . 2 . Impact Weapon . | . . . Slashing Weapon . | . . . Piercing Weapon . | . . . Special Melee Weapon 1 | . 1 . Unidentified Prototypes . | . . . Parts Lost 9 | . 4 5 Power 2 | . 1 1 Propulsion 3 | . 1 2 Utility 3 | . 1 2 Weapon 1 | . 1 . Highest Loss Streak 5 | . 2 5 To Critical Strikes . | . . . Average Backups 3 | 1 3 4 Power . | . . . Propulsion . | . . 1 Utility 1 | . 1 2 Weapon 1 | . 1 1 Tool/Special . | . . . Unused Backups 2 | . 1 1 Power . | . . . Propulsion . | . . . Utility 1 | . . 1 Weapon 1 | . 1 . Tool/Special . | . . . Average Slot Usage (%) 94 | . 97 71 Engine 12 | . 13 11 Wheel 20 | . 22 . Hover 4 | . 4 6 Flight 1 | . . 15 Device 17 | . 18 5 Processor 6 | . 7 . Hackware 1 | . 1 5 Energy Gun 15 | . 16 . Ballistic Gun 4 | . 3 14 Special Weapon 5 | . 6 . Special Melee Weapon 2 | . 1 14 Peak Build Rating 9 | 9 9 9 Average Rating 7 | 4 7 5 On Entrance 6 | . 9 9 Avg Prop Armor Cover (%) . | . . . Naked Turns . | . . . Heaviest Build 11 | 11 11 8 Greatest Support 32 | 20 32 12 Greatest Overweight (x) 1 | . 1 . Average Overweight (x) . | . . . Largest Inventory Capacity 5 | 5 5 5 Average Capacity 5 | 5 5 5 Most Carried 5 | 3 5 5 Average Carried 3 | 1 3 4 Final Capacity 5 | 5 5 5 Final Carried 4 | 2 4 4 Class Distribution -------------------- 86% | Mutant 13% | Scavenger-Mutant Dominant Class ---------------- Mutant | -10/Materials Scavenger-Mutant | -10/Mines Resources | -11 -10 -10 ----------- Run | Yrd Mat Min Matter Collected 472 | 280 158 34 Remotely . | . . . Salvage Created 664 | 110 515 39 Parts 32 | 6 22 4 Haulers Intercepted . | . . . Recyclers Shooed . | . . . Parts Field Recycled . | . . . Retrieved Matter . | . . . Parts Self-Destructed . | . . . Prevented . | . . . Parts Restored . | . . . Kills | -11 -10 -10 ------- Run | Yrd Mat Min Combat Hostiles Destroyed 17 | . 14 3 Guns 16 | . 13 3 Classes Destroyed 6 | 2 4 . Tunneler 2 | 2 . . Recycler 1 | 1 . . Operator 2 | . 2 . Watcher 3 | . 3 . Swarmer 9 | . 6 3 Grunt 8 | . 8 . Best Kill Streak 3 | 2 3 3 Combat Bots Only 3 | . 3 3 Max Kills in Single Turn 1 | 1 1 1 Gunslinging . | . . . Exploded . | . . . Melee . | . . . Uniques/NPCs Destroyed . | . . . Combat | -11 -10 -10 -------- Run | Yrd Mat Min Hostile Shots Fired 132 | . 74 58 Missed 39 | . 22 17 Hits 93 | . 52 41 Projectile 93 | . 52 41 Critical Strikes 1 | . 1 . Damage Taken 839 | . 494 345 Core 253 | . 148 105 Absorbed by Shields . | . . . Regen/Repaired (Parts) 27 | . 27 . Core Remaining (%) 100 | 100 . . Volleys Fired 98 | 7 67 24 Largest 2 | 2 2 1 Hottest 150 | 100 150 20 Shots Fired 144 | 14 106 24 Gun 139 | 14 101 24 Cannon . | . . . Launcher . | . . . Special 5 | . 5 . Kinetic 32 | . 8 24 Thermal 112 | 14 98 . Explosive . | . . . Electromagnetic . | . . . Robot Hit Streak 7 | 5 6 7 Robot Miss Streak 3 | 2 3 1 Penetration Max . | . . . Secondary Targets 1 | . 1 . Max Gunslinging Chain 1 | . 1 . Shots Hit Robots 93 | 10 63 20 Core Hits 40 | 4 29 7 Critical Kills . | . . . Critical Parts Destroyed . | . . . Critical Strikes 7 | . 7 . Burn 7 | . 7 . Melee Attacks 3 | . . 3 Impact . | . . . Slashing . | . . . Piercing . | . . . Sneak Attacks . | . . . Combat Hostiles . | . . . Follow-up Attacks . | . . . Damage Inflicted 1061 | 123 796 142 Guns 1037 | 123 772 142 Cannons . | . . . Explosions . | . . . Melee . | . . . Ramming . | . . . Kinetic 181 | . 39 142 Thermal 880 | 123 757 . Explosive . | . . . Electromagnetic . | . . . Impact . | . . . Slashing . | . . . Piercing . | . . . Highest Corruption . | . . . Average Corruption . | . . . Corruption Purged . | . . . Corruption Blocked . | . . . Overload Shots . | . . . Overflow Damage . | . . . Projectiles . | . . . Explosions . | . . . Melee . | . . . Knockbacks . | . . . Impact . | . . . Kinetic . | . . . Secondary . | . . . Self-Inflicted Damage . | . . . Shots . | . . . Rammed . | . . . Targets Rammed . | . . . Kicked . | . . . Crushed . | . . . Highest Temperature 332 | 156 332 11 Average Temperature 82 | 66 88 2 Received Heat Transfer 186 | . 168 18 Effects 1 | . 1 . Energy Bleed 1 | . 1 . Siege Activations . | . . . Martial Activations . | . . . Shielding Activations . | . . . Robots Disrupted . | . . . Combat Hostiles . | . . . Robots Corrupted . | . . . Combat Hostiles . | . . . Parts Fried . | . . . Impact Corruptions . | . . . Robots Melted 1 | . 1 . Combat Hostiles 1 | . 1 . Parts Melted 7 | 2 5 . Heat Transferred 3121 | 370 2751 . Parts Sabotaged . | . . . Parts Stolen . | . . . Parts Stripped . | . . . Power Chain Reactions . | . . . Alert | -11 -10 -10 ------- Run | Yrd Mat Min Maximum Alert Level . | . . . Low Security (%) 100 | 100 100 100 Level 1 . | . . . Level 2 . | . . . Level 3 . | . . . Level 4 . | . . . Level 5 . | . . . High Security . | . . . Max Security . | . . . Peak Influence 104 | 5 104 50 Initial 1 | . . 1 Average 26 | . 28 20 Influence Increases 501 | 15 416 70 Destroy 0b10 Robot/C 340 | . 280 60 Destroy 0b10 Robot/NC 40 | 15 25 . Destroy Leader 86 | . 76 10 Successful Hack 31 | . 31 . Destroy Structure 4 | . 4 . Influence Decreases 491 | 15 410 66 Entered New Map 5 | . . 5 Time Decay 455 | 15 390 50 Lost Part 31 | . 20 11 Squads Dispatched 4 | . 4 . Investigation 2 | . 2 . Extermination . | . . . Reinforcement 2 | . 2 . Assault . | . . . Garrison . | . . . Intercept . | . . . Searches Triggered . | . . . Construction Impeded . | . . . Haulers Reinforced . | . . . Active Scanning Responses . | . . . Cargo Convoy Interrupts . | . . . Stealth | -11 -10 -10 --------- Run | Yrd Mat Min Distress Signals . | . . . Communications Jammed . | . . . Distress Signals . | . . . Times Spotted 34 | . 29 5 Peak Tracking Total 5 | . 5 3 Tactical Retreats . | . . . Traps | -11 -10 -10 ------- Run | Yrd Mat Min Traps Triggered . | . . . Indirectly . | . . . Trap Hack Attempts . | . . . Triggered . | . . . Disarmed . | . . . Reprogrammed . | . . . Reused . | . . . Traps Extracted . | . . . Installed . | . . . Triggered . | . . . Machines | -11 -10 -10 ---------- Run | Yrd Mat Min Machines Disabled . | . . . Max in Single Turn . | . . . Machines Repaired . | . . . Machines Dismantled . | . . . Machines Sabotaged . | . . . Overloaded Fab Kills . | . . . Hacking | -11 -10 -10 --------- Run | Yrd Mat Min Machines Accessed 7 | . 7 . Terminals 6 | . 6 . Fabricators . | . . . Repair Stations 1 | . 1 . Recycling Units . | . . . Scanalyzers . | . . . Garrison Access . | . . . Total Hacks 16 | . 16 . Successful 9 | . 9 . Failed 7 | . 7 . Catastrophic 1 | . 1 . Database Lockouts . | . . . Manual 13 | . 13 . Terminals 14 | . 14 . Fabricators . | . . . Repair Stations 2 | . 2 . Recycling Units . | . . . Scanalyzers . | . . . Garrison Access . | . . . Terminal Hacks 2 | . 2 . Branch Access Points 1 | . 1 . Alert Level 1 | . 1 . Fabricator Hacks . | . . . Repair Station Hacks 2 | . 2 . Scan Component 1 | . 1 . Repair 1 | . 1 . Recycling Unit Hacks . | . . . Scanalyzer . | . . . Garrison Access Hacks . | . . . Unauthorized Hacks 5 | . 5 . Terminals 5 | . 5 . Assimilate 1 | . 1 . Botnet 4 | . 4 . Fabricators . | . . . Repair Stations . | . . . Recycling Units . | . . . Scanalyzers . | . . . Garrison Access . | . . . Data Cores Recovered . | . . . Used . | . . . Hacking Detections 6 | . 6 . Full Trace Events . | . . . Feedback Events . | . . . Feedback Blocked . | . . . Robot Schematics Acquired . | . . . Robots Built . | . . . Authchips . | . . . Time . | . . . Total Robot Build Rating . | . . . Part Schematics Acquired . | . . . Parts Built . | . . . Authchips . | . . . Time . | . . . Total Part Build Rating . | . . . Part Studies Acquired . | . . . Parts Repaired 1 | . 1 . Time 26 | . 26 . Parts Recycled . | . . . Recycled Matter . | . . . Retrieved Matter . | . . . Retrieved Components . | . . . Parts Scanalyzed . | . . . Part Schematics Acquired . | . . . Parts Damaged . | . . . Bothacking | -11 -10 -10 ------------ Run | Yrd Mat Min Used RIF Installer . | . . . Robots Hacked 1 | . . 1 Non-combat . | . . . Combat 1 | . . 1 Robot Hacks Applied 1 | . . 1 parse_system 1 | . . 1 Relay Couplers Released . | . . . Fabnet Peak Effective % . | . . . Robots Rewired . | . . . Allies Hacked . | . . . Hacks Repelled . | . . . Allies | -11 -10 -10 -------- Run | Yrd Mat Min Total Allies . | . . . Largest Group . | . . . Highest-Rated Group . | . . . Highest-Rated Ally . | . . . Total Orders . | . . . Ally Attacks . | . . . Total Damage . | . . . Kills . | . . . Allies Corrupted . | . . . Allies Melted . | . . . Intel | -11 -10 -10 ------- Run | Yrd Mat Min Active Infowar (turns) 1556 | 20 1497 39 Optics 805 | . 805 . Terrain 263 | 20 243 . Structural 1254 | . 1215 39 Seismic 567 | 19 548 . Robot Analysis Total . | . . . Derelict Logs Recovered . | . . . Drone Launches . | . . . Drone Recoveries . | . . . Exploration | -11 -10 -10 ------------- Run | Yrd Mat Min Turns Passed 1718 | 83 1497 138 Spaces Moved 1675 | 49 1459 167 Core 15 | 6 . 9 Treads . | . . . Legs . | . . . Wheels 1095 | 43 1052 . Hover 430 | . 407 23 Flight 135 | . . 135 Fastest Speed 37 | 50 56 37 Average Speed 76 | 76 80 40 Slowest Speed 125 | 80 125 56 Overloaded Moves . | . . . Propulsion Burnouts . | . . . Robots Hopped . | . . . Potential Cave-ins . | . . . Cave-ins Triggered . | . . . Exploration Rate (%) 48 | 3 99 44 Regions Visited 2 Branch Regions 1 Pre-discovered Areas . | . . . Known Exits Taken 1 | . 1 . Unknown Exits Taken 1 | 1 . . Scrap Searched . | . . . Spaces Dug 1 | . 1 . Terrain Destroyed 3 | . 3 . Melee . | . . . Projectile 3 | . 3 . AOE . | . . . Terrain Rammed . | . . . Walls Destroyed . | . . . Machines Disabled . | . . . Actions | -11 -10 -10 --------- Run | Yrd Mat Min Total 1955 | 79 1659 217 Wait 118 | 7 94 17 Move 1673 | 48 1458 167 Hop . | . . . Pick Up 28 | 9 16 3 Fast Attach . | . . . Attach 15 | 7 5 3 Detach . | . . . Swap 12 | 1 11 . Drop 8 | . 8 . Fire 98 | 7 67 24 Melee 3 | . . 3 Ram . | . . . Kick . | . . . Crush . | . . . Escape Stasis . | . . . Rewire . | . . . Trap . | . . . Miscellaneous . | . . . Route ------- -11/Scrapyard -10/Materials (discovered 5 exits: [*Mat x3] / *Min / [*Sub]) -10/Mines (discovered 1 exit: [*Sub]) History --------- Turn | Location | Event 36 | -11/Scrapyard | Discovered new exit (range 13) 84 | -11/Scrapyard | Entered Materials 215 | -10/Materials | Discovered new exit (range 16) 300 | -10/Materials | Build established: Mutant 323 | -10/Materials | Discovered new exit (range 16) 556 | -10/Materials | Discovered new exit (range 16) 669 | -10/Materials | Core integrity fell below 50% 722 | -10/Materials | Discovered new exit (range 18) 1024 | -10/Materials | Discovered new exit (range 8) 1172 | -10/Materials | Repaired Wheel 1566 | -10/Materials | Identified exit to Mines 1581 | -10/Materials | Entered Mines 1600 | -10/Mines | Met a Derelict bent on vengeance 1612 | -10/Mines | Discovered new exit (range 9) 1615 | -10/Mines | Core integrity fell below 20% 1654 | -10/Mines | Lost 5 parts (1p2n2u) 1719 | -10/Mines | Destroyed by G-47 Trooper with Particle Gun Last Messages --------------- 01616_ T-07 Excavator is excavating. 01620_ Structural Scanner destroyed. 01620_ S-10 Pest destroyed. 01621_ T-07 Excavator is excavating. 01622_ S-10 Pest destroyed. 01623_ Hacking Suite destroyed. 01625_ T-07 Excavator is excavating. 01629_ S-10 Pest destroyed. 01632_ Acquired 4 matter. 01633_ Acquired Flight Unit. 01638_ Acquired 10 matter. 01638_ Acquired Flight Unit. 01641_ Acquired Lgt. Ion Engine. 01643_ Acquired 3 matter. 01643_ Acquired 9 matter. 01644_ Acquired 8 matter. 01650_ T-07 Excavator is excavating. 01658_ R-06 Scavenger collects Lgt. Assault Rifle. 01709_ K-01 Serf collects debris. Map ----- +----------------------------------------------------+ | ?????????????????????????????????????????????????? | | ?????????????????????????????????????????????????? | | ??????????????????????####???????????????????????? | | ?????????????????????## ####????????????????????? | | ?????????????????????# ##???????####????????? | | ????????????????????## ######### ##???????? | | ???????????????????## #???????? | | ??????????????????## ###### ## ##??????? | | ??????????????????# ##????# ### ####???? | | ??????????????????## #?????# #?## ##??? | | ???????????????????### ####### #??# ##?? | | ?????????????????????## #??# ### | | ??????????????????????# ### ######??# | | ??????????????????????# #### #???????# | | ??????????????????????# #???????## | | ??????????????????????#t ######????????#### | | ??????????????????????# ###??????????????## | | ??????????????????????# #???????????????## | | ?????????????????????## u##????????????????## | | ?????????????????????# ##?????????????????# | | ?????????????????????# #?????????????????# | | ?????????????????????## #?????????????????# | | ??????????????????????## ##????????????????# | | ???????????????????????##k ##???????????????# | | ????????????????######### #???????????????## | | ????????? g @ #????????????????### | | ????????????????# ######## ##??????????????????## | | ?????????????????????????####????????????????????? | | ?????????????????????????????????????????????????? | | ?????????????????????????????????????????????????? | | ?????????????????????????????????????????????????? | | ?????????????????????????????????????????????????? | | ?????????????????????????????????????????????????# | | ????????????????????????????????????????????????## | | ????????????????????????????????????????????????# | | ?????????????????????????????????????????# | | ??????????????????????????????????????????# | | ??????????????????????????????????????????# | | ??????????????????????????????????????????? | | ??????????????????????????????????????????? ? | | ???????????????????????????????????????????? ?? | | ????????????????????????????????????????????? ?? | | ?????????????????????????????????????????????????? | | ?????????????????????????????????????????????????? | | ?????????????????????????????????????????????????? | | ?????????????????????????????????????????????????? | | ??????????????????????????????????????????????# ## | | ??????????????????????????????????????????????# | | ???????????????????????????????????????????????### | | ???????????????????????????????????????######????? | +----------------------------------------------------+ Best States ------------- Heat Dissipation 25 Energy Generation 10 Energy Capacity 250 Matter Stores 300 Matter Capacity 300 Sight Range 18 Terrain Scan Range 16 Terrain Scan Density 10 Evasion (%) 62 Offensive Hacking 10 Item Schematics ----------------- None Robot Schematics ------------------ None Fabricated ------------ Nothing Repaired ---------- Wheel | 32% | -10/Materials Studied --------- None Alien Tech Used ----------------- None Achievements -------------- None Challenges ------------ None Game ------ Seed TeleporterBackupPurifier Manual? 0 Play Time 00:25:20 Cumulative 8.9 hours Start 2026.02.07 @ 15:22:28 End 2026.02.07 @ 15:51:45 Sessions 1 Manual Loads 0 Difficulty Rogue Special Mode None Game No. 16 Rogue 13 Adventurer 3 Explorer 0 Win Type - Total 1 Types 1/0/0/0/0/0/0/0/0/0 Lore% 6 Gallery% 15 Achievement% 15 Wizard Run 0 Options --------- Layout 1 ASCII 0 Keyboard 0 Movement Numpad Keybinds 0 Fullscreen 2 Font 24/Proggy Map View 50x35 Zoom Use 0% Tactical HUD 1 Map Filters NONE Filters NONE Steam 1 RUN: 3f9b1306-d31e-4a85-90ae-781c501617ca